[Event "Early-Titled-Tuesday-Blitz-March-26-2024"]
[Site "Chess.com"]
[Date "2024.03.26"]
[Round "4"]
[White "chessdjw"]
[Black "Boorchess"]
[Result "1-0"]
[WhiteElo "2806"]
[BlackElo "2573"]
[TimeControl "180+1"]
[EndTime "8:37:48 PDT"]
[Termination "chessdjw won by resignation"]

1. d4 {[%clk 0:03:00.9]} 1... d5 {[%clk 0:02:57.1]} 2. c4 {[%clk 0:03:00.5]}
2... e5 {[%clk 0:02:56.9]} 3. dxe5 {[%clk 0:02:58.2]} 3... d4 {[%clk 0:02:57.3]}
4. Nf3 {[%clk 0:02:58.9]} 4... Nc6 {[%clk 0:02:57.3]} 5. a3 {[%clk 0:02:59.5]}
5... Nge7 {[%clk 0:02:55.1]} 6. b4 {[%clk 0:02:59.5]} 6... Ng6 {[%clk
0:02:54.8]} 7. Bb2 {[%clk 0:03:00.1]} 7... Ngxe5 {[%clk 0:02:54.1]} 8. Nxe5
{[%clk 0:02:58]} 8... Nxe5 {[%clk 0:02:53.5]} 9. e3 {[%clk 0:02:50.4]} 9... Be6
{[%clk 0:02:36.3]} 10. Bxd4 {[%clk 0:02:35]} 10... Nxc4 {[%clk 0:02:32.6]} 11.
Qc2 {[%clk 0:02:27.7]} 11... Nd6 {[%clk 0:02:30]} 12. Bd3 {[%clk 0:02:26.7]}
12... c6 {[%clk 0:01:58.4]} 13. O-O {[%clk 0:02:26]} 13... Qg5 {[%clk
0:01:44.8]} 14. Nc3 {[%clk 0:02:16.1]} 14... Nf5 {[%clk 0:01:30.9]} 15. Bxf5
{[%clk 0:01:40.8]} 15... Qxf5 {[%clk 0:01:26.6]} 16. e4 {[%clk 0:01:41.1]} 16...
Qh5 {[%clk 0:01:19.4]} 17. Ne2 {[%clk 0:01:31.7]} 17... Bd6 {[%clk 0:01:15.8]}
18. f4 {[%clk 0:01:24]} 18... O-O {[%clk 0:00:51.1]} 19. Ng3 {[%clk 0:01:22.1]}
19... Qh6 {[%clk 0:00:49.6]} 20. e5 {[%clk 0:01:15.4]} 20... Bc7 {[%clk
0:00:49.1]} 21. f5 {[%clk 0:01:14]} 21... Bd5 {[%clk 0:00:48.9]} 22. Rae1 {[%clk
0:01:12.6]} 22... b6 {[%clk 0:00:45.6]} 23. f6 {[%clk 0:00:38.3]} 23... g6
{[%clk 0:00:42.7]} 24. Be3 {[%clk 0:00:33.9]} 24... Qh4 {[%clk 0:00:36.8]} 25.
Rf4 {[%clk 0:00:29.5]} 25... Qg5 {[%clk 0:00:37]} 26. Rf5 {[%clk 0:00:15.5]}
26... Qg4 {[%clk 0:00:35.2]} 27. Rf4 {[%clk 0:00:10.7]} 27... Qe6 {[%clk
0:00:32.8]} 28. Bd4 {[%clk 0:00:08.2]} 28... Rfd8 {[%clk 0:00:30.5]} 29. Rh4
{[%clk 0:00:05.5]} 29... c5 {[%clk 0:00:30.4]} 30. Qc1 {[%clk 0:00:03.1]} 30...
Qe8 {[%clk 0:00:27.2]} 31. Qh6 {[%clk 0:00:03]} 1-0

[Event "Early-Titled-Tuesday-Blitz-March-26-2024"]
[Site "Chess.com"]
[Date "2024.03.26"]
[Round "4"]
[White "Kapitan_Bayan"]
[Black "Aisen1011"]
[Result "1/2-1/2"]
[WhiteElo "2293"]
[BlackElo "2465"]
[TimeControl "180+1"]
[EndTime "8:37:48 PDT"]
[Termination "Game drawn by stalemate"]

1. e4 {[%clk 0:03:00.9]} 1... e5 {[%clk 0:02:59.7]} 2. Nf3 {[%clk 0:03:00]} 2...
Nc6 {[%clk 0:03:00.1]} 3. Bc4 {[%clk 0:02:59.6]} 3... Bc5 {[%clk 0:03:00.3]} 4.
O-O {[%clk 0:02:58.6]} 4... Nf6 {[%clk 0:03:00.6]} 5. d3 {[%clk 0:02:58.8]} 5...
O-O {[%clk 0:03:00.3]} 6. Nbd2 {[%clk 0:02:56.7]} 6... d5 {[%clk 0:02:59.2]} 7.
exd5 {[%clk 0:02:51.4]} 7... Nxd5 {[%clk 0:03:00.1]} 8. Re1 {[%clk 0:02:51.8]}
8... Nf4 {[%clk 0:02:43.5]} 9. Ne4 {[%clk 0:02:31.4]} 9... Bb6 {[%clk
0:02:40.4]} 10. Nxe5 {[%clk 0:02:07.7]} 10... Nh3+ {[%clk 0:02:39.6]} 11. gxh3
{[%clk 0:01:42.7]} 11... Nxe5 {[%clk 0:02:40.5]} 12. Bg5 {[%clk 0:01:39.5]}
12... Qd7 {[%clk 0:02:30.8]} 13. Nc5 {[%clk 0:00:46]} 13... Qf5 {[%clk
0:02:20.6]} 14. Qh5 {[%clk 0:00:21.3]} 14... Qxg5+ {[%clk 0:01:44.5]} 15. Qxg5
{[%clk 0:00:19.4]} 15... Nf3+ {[%clk 0:01:44.9]} 16. Kg2 {[%clk 0:00:18.1]}
16... Nxg5 {[%clk 0:01:45.8]} 17. Ne4 {[%clk 0:00:17.4]} 17... Bxh3+ {[%clk
0:01:36.7]} 18. Kg3 {[%clk 0:00:16.3]} 18... Nxe4+ {[%clk 0:01:34.7]} 19. Rxe4
{[%clk 0:00:15.8]} 19... Bf5 {[%clk 0:01:31.3]} 20. Re7 {[%clk 0:00:15.3]} 20...
Bc5 {[%clk 0:01:31.3]} 21. Re2 {[%clk 0:00:07.9]} 21... Rfe8 {[%clk 0:01:31.3]}
22. Rae1 {[%clk 0:00:06.7]} 22... Rxe2 {[%clk 0:01:31]} 23. Rxe2 {[%clk
0:00:07.6]} 23... Kf8 {[%clk 0:01:31.5]} 24. Kf3 {[%clk 0:00:06.2]} 24... Re8
{[%clk 0:01:30.8]} 25. Rxe8+ {[%clk 0:00:04.6]} 25... Kxe8 {[%clk 0:01:31]} 26.
Kf4 {[%clk 0:00:05.5]} 26... Be6 {[%clk 0:01:31.1]} 27. Bb5+ {[%clk 0:00:05.6]}
27... c6 {[%clk 0:01:31.4]} 28. Ba4 {[%clk 0:00:06.1]} 28... b5 {[%clk
0:01:31.8]} 29. Bb3 {[%clk 0:00:06.1]} 29... Bxb3 {[%clk 0:01:32.3]} 30. axb3
{[%clk 0:00:06.8]} 30... Ke7 {[%clk 0:01:31.1]} 31. f3 {[%clk 0:00:06.8]} 31...
Ke6 {[%clk 0:01:31.1]} 32. h3 {[%clk 0:00:06.9]} 32... f5 {[%clk 0:01:30.9]} 33.
Kg5 {[%clk 0:00:06.3]} 33... Be3+ {[%clk 0:01:31]} 34. Kh4 {[%clk 0:00:05.5]}
34... Bf2+ {[%clk 0:01:30.4]} 35. Kg5 {[%clk 0:00:05.4]} 35... Bg3 {[%clk
0:01:30.6]} 36. h4 {[%clk 0:00:04.1]} 36... h6+ {[%clk 0:01:29.1]} 37. Kg6
{[%clk 0:00:04.2]} 37... Bxh4 {[%clk 0:01:29.1]} 38. Kxg7 {[%clk 0:00:03.9]}
38... Bg5 {[%clk 0:01:29.2]} 39. Kg6 {[%clk 0:00:04.3]} 39... Ke5 {[%clk
0:01:29.6]} 40. Kh5 {[%clk 0:00:02.7]} 40... Kf4 {[%clk 0:01:29.6]} 41. Kg6
{[%clk 0:00:03.3]} 41... Kxf3 {[%clk 0:01:29.8]} 42. Kxf5 {[%clk 0:00:04.2]}
42... Bc1 {[%clk 0:01:27.3]} 43. Kg6 {[%clk 0:00:03.6]} 43... Ke2 {[%clk
0:01:25.8]} 44. Kh5 {[%clk 0:00:02.6]} 44... Kd2 {[%clk 0:01:23.7]} 45. c4
{[%clk 0:00:02.5]} 45... Kxd3 {[%clk 0:01:23.4]} 46. cxb5 {[%clk 0:00:01.9]}
46... cxb5 {[%clk 0:01:24.3]} 47. Kg4 {[%clk 0:00:02.3]} 47... Kc2 {[%clk
0:01:24.7]} 48. Kh5 {[%clk 0:00:03.2]} 48... Kxb3 {[%clk 0:01:25.2]} 49. Kg4
{[%clk 0:00:02.9]} 49... Kxb2 {[%clk 0:01:26.1]} 50. Kh5 {[%clk 0:00:03.8]}
50... a5 {[%clk 0:01:25.7]} 51. Kh4 {[%clk 0:00:04.7]} 51... a4 {[%clk
0:01:25.9]} 52. Kg4 {[%clk 0:00:05.6]} 52... a3 {[%clk 0:01:26.8]} 53. Kh5
{[%clk 0:00:06.5]} 53... a2 {[%clk 0:01:27.7]} 54. Kg4 {[%clk 0:00:07.4]} 54...
a1=Q {[%clk 0:01:27.9]} 55. Kh5 {[%clk 0:00:08.3]} 55... Qb1 {[%clk 0:01:28.5]}
56. Kg4 {[%clk 0:00:09.2]} 56... Qc2 {[%clk 0:01:28.3]} 57. Kh5 {[%clk
0:00:10.1]} 57... Qf5+ {[%clk 0:01:28.6]} 58. Kh4 {[%clk 0:00:10.3]} 58... Qg5+
{[%clk 0:01:29.1]} 59. Kh3 {[%clk 0:00:10.7]} 59... Bf4 {[%clk 0:01:28.8]}
1/2-1/2

[Event "Early-Titled-Tuesday-Blitz-March-26-2024"]
[Site "Chess.com"]
[Date "2024.03.26"]
[Round "4"]
[White "subham777"]
[Black "Zampronha1971"]
[Result "0-1"]
[WhiteElo "2541"]
[BlackElo "2354"]
[TimeControl "180+1"]
[EndTime "8:37:48 PDT"]
[Termination "Zampronha1971 won by resignation"]

1. e4 {[%clk 0:03:00.9]} 1... c5 {[%clk 0:02:59.7]} 2. Nf3 {[%clk 0:02:57.7]}
2... e6 {[%clk 0:03:00.1]} 3. c3 {[%clk 0:02:57.7]} 3... Nf6 {[%clk 0:02:52.5]}
4. e5 {[%clk 0:02:57.5]} 4... Nd5 {[%clk 0:02:52.6]} 5. d4 {[%clk 0:02:57.9]}
5... cxd4 {[%clk 0:02:53.5]} 6. cxd4 {[%clk 0:02:58.6]} 6... b6 {[%clk
0:02:53.7]} 7. Nc3 {[%clk 0:02:58.9]} 7... Bb7 {[%clk 0:02:54.1]} 8. Bc4 {[%clk
0:02:57.5]} 8... Nxc3 {[%clk 0:02:53.7]} 9. bxc3 {[%clk 0:02:57.9]} 9... Qc7
{[%clk 0:02:54.4]} 10. Qe2 {[%clk 0:02:57.3]} 10... b5 {[%clk 0:02:54.6]} 11.
Bxb5 {[%clk 0:02:48.4]} 11... Qxc3+ {[%clk 0:02:54.2]} 12. Nd2 {[%clk
0:02:47.9]} 12... Qxa1 {[%clk 0:02:52.7]} 13. O-O {[%clk 0:02:47.9]} 13... Qxd4
{[%clk 0:02:48.7]} 14. Nf3 {[%clk 0:02:45.2]} 14... Qb6 {[%clk 0:02:44.2]} 15.
Rd1 {[%clk 0:02:42.6]} 15... Be7 {[%clk 0:02:39.7]} 16. Be3 {[%clk 0:02:38.2]}
16... Qd8 {[%clk 0:02:34.6]} 17. Bd3 {[%clk 0:02:25.1]} 17... Nc6 {[%clk
0:02:24]} 18. h4 {[%clk 0:02:22.5]} 18... O-O {[%clk 0:02:13.6]} 19. Ng5 {[%clk
0:02:20.6]} 19... Bxg5 {[%clk 0:01:55.8]} 20. Bxg5 {[%clk 0:02:14.3]} 20... Qa5
{[%clk 0:01:29]} 21. Qh5 {[%clk 0:02:11.6]} 21... g6 {[%clk 0:01:28.2]} 22. Qh6
{[%clk 0:02:06.9]} 22... Qxe5 {[%clk 0:01:24.3]} 23. Bc1 {[%clk 0:02:01.8]}
23... Qg7 {[%clk 0:01:22.8]} 24. Qg5 {[%clk 0:02:01]} 24... Ne5 {[%clk
0:01:18.8]} 25. Bf1 {[%clk 0:01:57]} 25... f6 {[%clk 0:01:17.2]} 26. Qg3 {[%clk
0:01:43.3]} 26... Rac8 {[%clk 0:01:16.4]} 27. Bb2 {[%clk 0:01:34]} 27... Bd5
{[%clk 0:01:14.4]} 28. f4 {[%clk 0:01:31.3]} 28... Nc4 {[%clk 0:01:11.2]} 29.
Bd4 {[%clk 0:01:27.6]} 29... Nd6 {[%clk 0:01:10.2]} 30. Ba1 {[%clk 0:01:24.9]}
30... Nf5 {[%clk 0:01:09]} 31. Qe1 {[%clk 0:01:25.1]} 31... Qh6 {[%clk
0:01:05.4]} 32. g3 {[%clk 0:01:22.4]} 32... Rc2 {[%clk 0:01:02]} 33. Qa5 {[%clk
0:01:18.3]} 33... Qh5 {[%clk 0:00:53.1]} 34. Rxd5 {[%clk 0:01:11.6]} 34... exd5
{[%clk 0:00:53]} 35. Qxd5+ {[%clk 0:01:12.4]} 35... Kg7 {[%clk 0:00:40.8]} 36.
Qxd7+ {[%clk 0:00:57.3]} 36... Rf7 {[%clk 0:00:37.8]} 37. Qa4 {[%clk 0:00:47.2]}
37... Qd1 {[%clk 0:00:28.5]} 38. Qa6 {[%clk 0:00:25.7]} 38... Qxa1 {[%clk
0:00:23]} 0-1

[Event "Early-Titled-Tuesday-Blitz-March-26-2024"]
[Site "Chess.com"]
[Date "2024.03.26"]
[Round "4"]
[White "Gurvich_Vitaly"]
[Black "ilushka"]
[Result "1-0"]
[WhiteElo "2709"]
[BlackElo "2506"]
[TimeControl "180+1"]
[EndTime "8:37:54 PDT"]
[Termination "Gurvich_Vitaly won by resignation"]

1. d4 {[%clk 0:03:00.9]} 1... e6 {[%clk 0:03:00.5]} 2. Nf3 {[%clk 0:02:59.8]}
2... Nf6 {[%clk 0:03:00.2]} 3. Bf4 {[%clk 0:02:59.4]} 3... c5 {[%clk 0:02:59.6]}
4. e3 {[%clk 0:02:58.6]} 4... b6 {[%clk 0:02:58.8]} 5. c3 {[%clk 0:02:58.2]}
5... Bb7 {[%clk 0:02:58.2]} 6. Nbd2 {[%clk 0:02:58]} 6... cxd4 {[%clk
0:02:57.7]} 7. exd4 {[%clk 0:02:58.2]} 7... d6 {[%clk 0:02:57.2]} 8. Bd3 {[%clk
0:02:58.2]} 8... Be7 {[%clk 0:02:57.6]} 9. O-O {[%clk 0:02:58.3]} 9... O-O
{[%clk 0:02:58.1]} 10. Re1 {[%clk 0:02:58.4]} 10... Nbd7 {[%clk 0:02:56.6]} 11.
Qe2 {[%clk 0:02:58.2]} 11... Re8 {[%clk 0:02:55.7]} 12. h3 {[%clk 0:02:57.6]}
12... Qc7 {[%clk 0:02:55.1]} 13. Bh2 {[%clk 0:02:57.9]} 13... a6 {[%clk
0:02:55.2]} 14. a4 {[%clk 0:02:57.3]} 14... g6 {[%clk 0:02:50.5]} 15. Rac1
{[%clk 0:02:33]} 15... Bf8 {[%clk 0:02:50.2]} 16. c4 {[%clk 0:02:30]} 16... Bc6
{[%clk 0:02:28.6]} 17. b3 {[%clk 0:02:28.3]} 17... Qb7 {[%clk 0:02:22.4]} 18.
Qf1 {[%clk 0:01:26.8]} 18... Rac8 {[%clk 0:02:16.8]} 19. Rcd1 {[%clk 0:01:10.8]}
19... Rb8 {[%clk 0:01:59.7]} 20. Qe2 {[%clk 0:01:07.1]} 20... Ra8 {[%clk
0:01:19.3]} 21. Ra1 {[%clk 0:01:02.5]} 21... Rec8 {[%clk 0:01:14.3]} 22. b4
{[%clk 0:00:58.2]} 22... a5 {[%clk 0:00:52.9]} 23. b5 {[%clk 0:00:56.2]} 23...
Bxf3 {[%clk 0:00:53.5]} 24. Nxf3 {[%clk 0:00:56.9]} 24... d5 {[%clk 0:00:54.1]}
25. Ne5 {[%clk 0:00:47.9]} 25... dxc4 {[%clk 0:00:53.7]} 26. Bxc4 {[%clk
0:00:47.5]} 26... Nxe5 {[%clk 0:00:48.2]} 27. Bxe5 {[%clk 0:00:48.4]} 27... Bg7
{[%clk 0:00:40.1]} 28. Rac1 {[%clk 0:00:46]} 28... Nd5 {[%clk 0:00:38.7]} 29.
Bxg7 {[%clk 0:00:35.1]} 29... Kxg7 {[%clk 0:00:39.6]} 30. Qe5+ {[%clk
0:00:34.4]} 30... Kg8 {[%clk 0:00:30.8]} 31. h4 {[%clk 0:00:33.7]} 31... h5
{[%clk 0:00:22.3]} 32. Bd3 {[%clk 0:00:28.4]} 32... Qe7 {[%clk 0:00:18.1]} 33.
Rxc8+ {[%clk 0:00:25.6]} 33... Rxc8 {[%clk 0:00:15]} 34. Qxd5 {[%clk 0:00:24.5]}
34... Rc1 {[%clk 0:00:03.5]} 35. Qa8+ {[%clk 0:00:22]} 35... Kg7 {[%clk
0:00:03.4]} 36. Rxc1 {[%clk 0:00:21.6]} 1-0

[Event "Early-Titled-Tuesday-Blitz-March-26-2024"]
[Site "Chess.com"]
[Date "2024.03.26"]
[Round "4"]
[White "KuzubovYuriy"]
[Black "Aradhya2000"]
[Result "1-0"]
[WhiteElo "2920"]
[BlackElo "2748"]
[TimeControl "180+1"]
[EndTime "8:37:57 PDT"]
[Termination "KuzubovYuriy won by resignation"]

1. d4 {[%clk 0:03:00.9]} 1... d5 {[%clk 0:03:00.2]} 2. c4 {[%clk 0:03:01.2]}
2... e6 {[%clk 0:03:00.4]} 3. Nf3 {[%clk 0:02:58.6]} 3... Nf6 {[%clk 0:03:00.9]}
4. Nc3 {[%clk 0:02:58.6]} 4... Ne4 {[%clk 0:03:01.1]} 5. Qc2 {[%clk 0:02:57.3]}
5... Nxc3 {[%clk 0:03:00.9]} 6. bxc3 {[%clk 0:02:52.7]} 6... dxc4 {[%clk
0:03:00.6]} 7. e4 {[%clk 0:02:52.7]} 7... b5 {[%clk 0:02:57.7]} 8. a4 {[%clk
0:02:51.6]} 8... c6 {[%clk 0:02:57.5]} 9. Be2 {[%clk 0:02:44.7]} 9... Bb7 {[%clk
0:02:54.9]} 10. Rb1 {[%clk 0:02:32.6]} 10... a6 {[%clk 0:02:54.1]} 11. Bxc4
{[%clk 0:02:30.6]} 11... Be7 {[%clk 0:02:53.5]} 12. O-O {[%clk 0:02:29.2]} 12...
O-O {[%clk 0:02:50.4]} 13. Bd3 {[%clk 0:02:28.1]} 13... Nd7 {[%clk 0:02:49.8]}
14. c4 {[%clk 0:02:02]} 14... bxc4 {[%clk 0:02:38.9]} 15. Bxc4 {[%clk
0:01:40.1]} 15... Qc8 {[%clk 0:02:38.1]} 16. Qb3 {[%clk 0:01:25.8]} 16... Ra7
{[%clk 0:02:36.3]} 17. Bg5 {[%clk 0:01:21.9]} 17... Bxg5 {[%clk 0:02:16]} 18.
Nxg5 {[%clk 0:01:22.8]} 18... h6 {[%clk 0:01:45.9]} 19. Nxf7 {[%clk 0:01:19.8]}
19... Kxf7 {[%clk 0:01:43.2]} 20. Bxe6+ {[%clk 0:01:17.9]} 20... Ke8 {[%clk
0:01:41.9]} 21. d5 {[%clk 0:01:00.9]} 21... Qc7 {[%clk 0:00:45.6]} 22. Rfc1
{[%clk 0:00:37.3]} 22... Ne5 {[%clk 0:00:16.5]} 23. Qe3 {[%clk 0:00:31.4]} 23...
Ra8 {[%clk 0:00:16.7]} 24. f4 {[%clk 0:00:30.9]} 24... Nf7 {[%clk 0:00:12.4]}
25. e5 {[%clk 0:00:28.5]} 25... Nd8 {[%clk 0:00:12.4]} 26. d6 {[%clk 0:00:26.8]}
26... Qa5 {[%clk 0:00:12.6]} 27. Bc4 {[%clk 0:00:22.8]} 27... Bc8 {[%clk
0:00:07.5]} 28. e6 {[%clk 0:00:21.7]} 28... Rf6 {[%clk 0:00:07.2]} 29. d7+
{[%clk 0:00:21.3]} 29... Ke7 {[%clk 0:00:06.9]} 30. Qa3+ {[%clk 0:00:18.9]}
30... c5 {[%clk 0:00:06.5]} 31. Bd5 {[%clk 0:00:17.9]} 31... Kd6 {[%clk
0:00:01.4]} 32. Bxa8 {[%clk 0:00:17.5]} 32... Nb7 {[%clk 0:00:01.4]} 33. dxc8=Q
{[%clk 0:00:17.5]} 1-0

[Event "Early-Titled-Tuesday-Blitz-March-26-2024"]
[Site "Chess.com"]
[Date "2024.03.26"]
[Round "4"]
[White "KevinGeorgeMicheal"]
[Black "DCacheiro"]
[Result "1-0"]
[WhiteElo "2408"]
[BlackElo "2510"]
[TimeControl "180+1"]
[EndTime "8:37:57 PDT"]
[Termination "KevinGeorgeMicheal won by checkmate"]

1. e4 {[%clk 0:03:00.9]} 1... c5 {[%clk 0:02:59.6]} 2. Nf3 {[%clk 0:03:01]} 2...
d6 {[%clk 0:03:00.1]} 3. d4 {[%clk 0:02:57.7]} 3... cxd4 {[%clk 0:03:01]} 4.
Nxd4 {[%clk 0:02:58.3]} 4... Nf6 {[%clk 0:03:01.3]} 5. Nc3 {[%clk 0:02:58.9]}
5... a6 {[%clk 0:03:01.7]} 6. Bc4 {[%clk 0:02:58.7]} 6... e6 {[%clk 0:03:01.6]}
7. O-O {[%clk 0:02:57.4]} 7... Be7 {[%clk 0:02:58.8]} 8. Qe2 {[%clk 0:02:55.4]}
8... O-O {[%clk 0:02:58.4]} 9. a4 {[%clk 0:02:54.2]} 9... Nc6 {[%clk 0:02:58]}
10. Be3 {[%clk 0:02:53.9]} 10... Bd7 {[%clk 0:02:56.7]} 11. Rad1 {[%clk
0:02:53.5]} 11... Rc8 {[%clk 0:02:54.6]} 12. f4 {[%clk 0:02:52.5]} 12... d5
{[%clk 0:02:37.1]} 13. exd5 {[%clk 0:02:47.1]} 13... exd5 {[%clk 0:02:38]} 14.
Nxd5 {[%clk 0:02:45.9]} 14... Bg4 {[%clk 0:01:39.9]} 15. Nxf6+ {[%clk
0:02:43.5]} 15... Bxf6 {[%clk 0:01:40.8]} 16. Qxg4 {[%clk 0:02:43.5]} 16... Bxd4
{[%clk 0:01:37.1]} 17. Bxd4 {[%clk 0:01:43.4]} 17... Nxd4 {[%clk 0:01:35.9]} 18.
Bd3 {[%clk 0:01:44]} 18... Qf6 {[%clk 0:01:27.9]} 19. c3 {[%clk 0:01:37.8]}
19... Nb3 {[%clk 0:01:16.9]} 20. Bc2 {[%clk 0:01:26.4]} 20... Nc5 {[%clk
0:01:14.3]} 21. Rd5 {[%clk 0:01:26]} 21... Qb6 {[%clk 0:01:12.7]} 22. Kh1 {[%clk
0:01:21.3]} 22... Qxb2 {[%clk 0:01:07.7]} 23. Bf5 {[%clk 0:00:47.7]} 23... Rc7
{[%clk 0:01:00.7]} 24. Bxh7+ {[%clk 0:00:24.6]} 24... Kxh7 {[%clk 0:00:56.2]}
25. Rh5+ {[%clk 0:00:22.9]} 25... Kg8 {[%clk 0:00:55.1]} 26. Qh3 {[%clk
0:00:23.5]} 26... f6 {[%clk 0:00:39.6]} 27. Re1 {[%clk 0:00:17.6]} 27... Kf7
{[%clk 0:00:11.4]} 28. Rh7 {[%clk 0:00:13.3]} 28... Qc2 {[%clk 0:00:10.8]} 29.
Rh5 {[%clk 0:00:08.4]} 29... Qg6 {[%clk 0:00:09.5]} 30. Rd5 {[%clk 0:00:07.5]}
30... Nd3 {[%clk 0:00:07.8]} 31. Qe6# {[%clk 0:00:07]} 1-0

[Event "Early-Titled-Tuesday-Blitz-March-26-2024"]
[Site "Chess.com"]
[Date "2024.03.26"]
[Round "4"]
[White "Ticoluis"]
[Black "JaackCamel"]
[Result "1-0"]
[WhiteElo "2499"]
[BlackElo "2191"]
[TimeControl "180+1"]
[EndTime "8:37:57 PDT"]
[Termination "Ticoluis won by checkmate"]

1. e4 {[%clk 0:02:45.9]} 1... e6 {[%clk 0:02:58.8]} 2. d4 {[%clk 0:02:45.2]}
2... d5 {[%clk 0:02:58.7]} 3. Nd2 {[%clk 0:02:45.7]} 3... c5 {[%clk 0:02:58.2]}
4. Ngf3 {[%clk 0:02:43.5]} 4... cxd4 {[%clk 0:02:57.8]} 5. exd5 {[%clk
0:02:43.3]} 5... Qxd5 {[%clk 0:02:57.2]} 6. Bc4 {[%clk 0:02:43.4]} 6... Qd6
{[%clk 0:02:56.5]} 7. O-O {[%clk 0:02:41.2]} 7... Nf6 {[%clk 0:02:56.3]} 8. Re1
{[%clk 0:02:38.8]} 8... Nc6 {[%clk 0:02:54.5]} 9. Nb3 {[%clk 0:02:38.5]} 9... a6
{[%clk 0:02:50.9]} 10. Nbxd4 {[%clk 0:02:25.7]} 10... Nxd4 {[%clk 0:02:50.5]}
11. Nxd4 {[%clk 0:02:24.4]} 11... Qc7 {[%clk 0:02:50.4]} 12. Bb3 {[%clk
0:02:23.5]} 12... Bd6 {[%clk 0:02:49.6]} 13. h3 {[%clk 0:02:16]} 13... O-O
{[%clk 0:02:49]} 14. Qf3 {[%clk 0:02:15.6]} 14... b5 {[%clk 0:02:43.1]} 15. Bg5
{[%clk 0:01:49.4]} 15... Bb7 {[%clk 0:02:40.3]} 16. Qd3 {[%clk 0:01:49]} 16...
Nd5 {[%clk 0:02:26.3]} 17. Nxe6 {[%clk 0:01:44.7]} 17... fxe6 {[%clk 0:02:23.2]}
18. Rxe6 {[%clk 0:01:44]} 18... Bf4 {[%clk 0:01:44.1]} 19. Re7 {[%clk
0:01:28.7]} 19... Qd8 {[%clk 0:00:49.5]} 20. Rxb7 {[%clk 0:00:54.4]} 20... Bxg5
{[%clk 0:00:25.5]} 21. Rd1 {[%clk 0:00:50.6]} 21... Qf6 {[%clk 0:00:20.5]} 22.
Bxd5+ {[%clk 0:00:46.1]} 22... Kh8 {[%clk 0:00:20.3]} 23. Bf3 {[%clk 0:00:44.9]}
23... h6 {[%clk 0:00:17.6]} 24. c3 {[%clk 0:00:41.2]} 24... Rae8 {[%clk
0:00:17.2]} 25. Rd7 {[%clk 0:00:39.5]} 25... Bf4 {[%clk 0:00:16.7]} 26. Bh5
{[%clk 0:00:32]} 26... Re5 {[%clk 0:00:14.7]} 27. Bg6 {[%clk 0:00:28]} 27... Rg5
{[%clk 0:00:13.7]} 28. Be4 {[%clk 0:00:26.8]} 28... Bb8 {[%clk 0:00:12.9]} 29.
Qe2 {[%clk 0:00:20.5]} 29... Qf4 {[%clk 0:00:12.1]} 30. g3 {[%clk 0:00:20.5]}
30... Rxg3+ {[%clk 0:00:07.8]} 31. fxg3 {[%clk 0:00:20.4]} 31... Qxg3+ {[%clk
0:00:07.8]} 32. Qg2 {[%clk 0:00:20.4]} 32... Qe3+ {[%clk 0:00:06.9]} 33. Kh1
{[%clk 0:00:19.5]} 33... Bg3 {[%clk 0:00:03.7]} 34. Rd8 {[%clk 0:00:18.5]} 34...
Rxd8 {[%clk 0:00:01]} 35. Rxd8# {[%clk 0:00:16.9]} 1-0

[Event "Early-Titled-Tuesday-Blitz-March-26-2024"]
[Site "Chess.com"]
[Date "2024.03.26"]
[Round "4"]
[White "Hauptsache_Gambit"]
[Black "LileKoridze"]
[Result "0-1"]
[WhiteElo "2186"]
[BlackElo "2455"]
[TimeControl "180+1"]
[EndTime "8:37:58 PDT"]
[Termination "LileKoridze won by checkmate"]

1. e4 {[%clk 0:02:56.7]} 1... c5 {[%clk 0:03:00.2]} 2. b4 {[%clk 0:02:56.6]}
2... cxb4 {[%clk 0:03:00.3]} 3. a3 {[%clk 0:02:57.1]} 3... bxa3 {[%clk
0:03:00.7]} 4. Bxa3 {[%clk 0:02:57.9]} 4... d6 {[%clk 0:02:58.4]} 5. Nf3 {[%clk
0:02:56.8]} 5... Nc6 {[%clk 0:02:58.4]} 6. Be2 {[%clk 0:02:57.3]} 6... Nf6
{[%clk 0:02:54.7]} 7. Nc3 {[%clk 0:02:56.3]} 7... g6 {[%clk 0:02:54.4]} 8. O-O
{[%clk 0:02:55.5]} 8... Bg7 {[%clk 0:02:54.5]} 9. Rb1 {[%clk 0:02:56.1]} 9...
O-O {[%clk 0:02:54.9]} 10. d4 {[%clk 0:02:53.2]} 10... d5 {[%clk 0:02:46.1]} 11.
exd5 {[%clk 0:02:37.9]} 11... Nxd5 {[%clk 0:02:45.8]} 12. Nxd5 {[%clk
0:02:38.8]} 12... Qxd5 {[%clk 0:02:45.8]} 13. c4 {[%clk 0:02:39.7]} 13... Qa5
{[%clk 0:02:30.4]} 14. Rb3 {[%clk 0:02:38.2]} 14... Bg4 {[%clk 0:02:10.2]} 15.
d5 {[%clk 0:02:21.8]} 15... Bxf3 {[%clk 0:02:08.7]} 16. Bxf3 {[%clk 0:02:19.7]}
16... Nd4 {[%clk 0:02:09.1]} 17. Rd3 {[%clk 0:02:20.2]} 17... Nxf3+ {[%clk
0:02:04.1]} 18. Qxf3 {[%clk 0:02:21.1]} 18... Rfe8 {[%clk 0:01:57.9]} 19. g3
{[%clk 0:02:16.8]} 19... Qc7 {[%clk 0:01:57.1]} 20. c5 {[%clk 0:02:14.8]} 20...
e5 {[%clk 0:01:52.8]} 21. d6 {[%clk 0:02:03.6]} 21... Qd7 {[%clk 0:01:52.5]} 22.
Qd5 {[%clk 0:01:57.8]} 22... Rac8 {[%clk 0:01:48.8]} 23. Rb1 {[%clk 0:01:56.4]}
23... b6 {[%clk 0:01:45.3]} 24. cxb6 {[%clk 0:01:53.7]} 24... axb6 {[%clk
0:01:45.3]} 25. Rxb6 {[%clk 0:01:54.2]} 25... e4 {[%clk 0:01:38.6]} 26. Rd1
{[%clk 0:01:45.2]} 26... Re5 {[%clk 0:01:29.8]} 27. Qb7 {[%clk 0:01:31.1]} 27...
Qg4 {[%clk 0:01:17.9]} 28. Re1 {[%clk 0:01:01.7]} 28... Rd8 {[%clk 0:00:59.4]}
29. Ra6 {[%clk 0:01:01.7]} 29... Ree8 {[%clk 0:00:35.4]} 30. Ra7 {[%clk
0:00:57.1]} 30... Qf5 {[%clk 0:00:31.8]} 31. d7 {[%clk 0:00:35.6]} 31... Bd4
{[%clk 0:00:12.6]} 32. dxe8=Q+ {[%clk 0:00:31]} 32... Rxe8 {[%clk 0:00:13]} 33.
Rf1 {[%clk 0:00:13.2]} 33... e3 {[%clk 0:00:11.6]} 34. fxe3 {[%clk 0:00:08.6]}
34... Bxe3+ {[%clk 0:00:10.7]} 35. Kh1 {[%clk 0:00:09.4]} 35... Qxf1# {[%clk
0:00:10.5]} 0-1